[Event "Titled Tuesday Blitz March 21 Late 2023"]
[White "Sielecki, Christof"]
[Black "Pniaczek, Marek"]
[WhiteFideId "4620437"]
[BlackFideId "21800421"]
[WhiteElo "2443"]
[BlackElo "2138"]
[Result "1-0"]
[Round "11"]
[TimeControl "180+2"]
[Date "2023.03.21"]
[WhiteClock "0:00:20"]
[BlackClock "0:00:08"]

1. e4 {[%clk 0:02:56]}  e5 {[%clk 0:02:59]} 2. Nf3 {[%clk 0:02:55]}  Nc6 {[%clk 0:03:00]} 3. Bb5 {[%clk 0:02:55]}  a6 {[%clk 0:03:00]} 4. Ba4 {[%clk 0:02:55]}  Nf6 {[%clk 0:03:00]} 5. d3 {[%clk 0:02:55]}  b5 {[%clk 0:03:00]} 6. Bb3 {[%clk 0:02:55]}  Bc5 {[%clk 0:03:00]} 7. Nc3 {[%clk 0:02:55]}  d6 {[%clk 0:02:59]} 8. Nd5 {[%clk 0:02:55]}  h6 {[%clk 0:02:59]} 9. c3 {[%clk 0:02:55]}  Bb7 {[%clk 0:02:53]} 10. Nxf6+ {[%clk 0:02:42]}  Qxf6 {[%clk 0:02:52]} 11. Bd5 {[%clk 0:02:42]}  Rb8 {[%clk 0:02:49]} 12. O-O {[%clk 0:02:39]}  O-O {[%clk 0:02:49]} 13. Be3 {[%clk 0:02:33]}  Ne7 {[%clk 0:02:39]} 14. Bxb7 {[%clk 0:02:26]}  Rxb7 {[%clk 0:02:36]} 15. d4 {[%clk 0:02:26]}  Bb6 {[%clk 0:02:34]} 16. a4 {[%clk 0:02:20]}  Rbb8 {[%clk 0:02:29]} 17. a5 {[%clk 0:02:18]}  exd4 {[%clk 0:02:23]} 18. cxd4 {[%clk 0:02:07]}  Ba7 {[%clk 0:02:23]} 19. Rc1 {[%clk 0:01:59]}  c6 {[%clk 0:02:14]} 20. b4 {[%clk 0:01:39]}  d5 {[%clk 0:02:11]} 21. e5 {[%clk 0:01:32]}  Qe6 {[%clk 0:02:10]} 22. Nd2 {[%clk 0:01:31]}  Nf5 {[%clk 0:02:07]} 23. Nb3 {[%clk 0:01:31]}  f6 {[%clk 0:02:03]} 24. Bf4 {[%clk 0:01:23]}  g5 {[%clk 0:01:38]} 25. Bg3 {[%clk 0:01:08]}  Nxg3 {[%clk 0:01:37]} 26. hxg3 {[%clk 0:01:09]}  fxe5 {[%clk 0:01:38]} 27. Nc5 {[%clk 0:01:08]}  Bxc5 {[%clk 0:01:36]} 28. Rxc5 {[%clk 0:01:09]}  e4 {[%clk 0:01:31]} 29. Qc1 {[%clk 0:01:08]}  Rbc8 {[%clk 0:01:30]} 30. Qe3 {[%clk 0:01:04]}  Rf6 {[%clk 0:01:27]} 31. Rfc1 {[%clk 0:01:03]}  Qf5 {[%clk 0:01:17]} 32. R1c2 {[%clk 0:00:58]}  Qd7 {[%clk 0:01:13]} 33. Rc1 {[%clk 0:00:56]}  Kg7 {[%clk 0:01:11]} 34. R1c2 {[%clk 0:00:52]}  Kg6 {[%clk 0:01:11]} 35. Rc1 {[%clk 0:00:52]}  h5 {[%clk 0:01:10]} 36. f4 {[%clk 0:00:48]}  exf3 {[%clk 0:01:08]} 37. gxf3 {[%clk 0:00:47]}  Qh3 {[%clk 0:01:05]} 38. Qf2 {[%clk 0:00:47]}  Qf5 {[%clk 0:01:01]} 39. R5c3 {[%clk 0:00:44]}  Kh7 {[%clk 0:00:57]} 40. Re3 {[%clk 0:00:44]}  Rcf8 {[%clk 0:00:54]} 41. Rf1 {[%clk 0:00:43]}  Re6 {[%clk 0:00:44]} 42. Rxe6 {[%clk 0:00:41]}  Qxe6 {[%clk 0:00:44]} 43. Re1 {[%clk 0:00:41]}  Qf6 {[%clk 0:00:44]} 44. Kg2 {[%clk 0:00:41]}  Rf7 {[%clk 0:00:42]} 45. Re5 {[%clk 0:00:41]}  Re7 {[%clk 0:00:36]} 46. Qe3 {[%clk 0:00:39]}  Rxe5 {[%clk 0:00:35]} 47. dxe5 {[%clk 0:00:40]}  Qe7 {[%clk 0:00:34]} 48. Qd3+ {[%clk 0:00:39]}  Kg7 {[%clk 0:00:34]} 49. Qf5 {[%clk 0:00:39]}  d4 {[%clk 0:00:31]} 50. f4 {[%clk 0:00:36]}  gxf4 {[%clk 0:00:26]} 51. gxf4 {[%clk 0:00:37]}  Kh6 {[%clk 0:00:19]} 52. Kf3 {[%clk 0:00:34]}  Qxb4 {[%clk 0:00:14]} 53. Qg5+ {[%clk 0:00:32]}  Kh7 {[%clk 0:00:14]} 54. Qxh5+ {[%clk 0:00:33]}  Kg7 {[%clk 0:00:15]} 55. Qg5+ {[%clk 0:00:33]}  Kh7 {[%clk 0:00:15]} 56. Qh5+ {[%clk 0:00:31]}  Kg7 {[%clk 0:00:16]} 57. Qg4+ {[%clk 0:00:32]}  Kh7 {[%clk 0:00:16]} 58. Qd7+ {[%clk 0:00:31]}  Kh8 {[%clk 0:00:16]} 59. Qe8+ {[%clk 0:00:30]}  Kh7 {[%clk 0:00:16]} 60. Qf7+ {[%clk 0:00:30]}  Kh6 {[%clk 0:00:16]} 61. e6 {[%clk 0:00:29]}  Qc3+ {[%clk 0:00:15]} 62. Kg4 {[%clk 0:00:30]}  Qe1 {[%clk 0:00:11]} 63. Qh5+ {[%clk 0:00:24]}  Kg7 {[%clk 0:00:10]} 64. Qg5+ {[%clk 0:00:25]}  Kf8 {[%clk 0:00:11]} 65. Qf6+ {[%clk 0:00:23]}  Kg8 {[%clk 0:00:11]} 66. Qf7+ {[%clk 0:00:23]}  Kh8 {[%clk 0:00:12]} 67. e7 {[%clk 0:00:23]}  Qg1+ {[%clk 0:00:11]} 68. Kf5 {[%clk 0:00:23]}  Qb1+ {[%clk 0:00:11]} 69. Ke5 {[%clk 0:00:21]}  Qe1+ {[%clk 0:00:08]} 70. Kd6 {[%clk 0:00:21]}  Qb4+ {[%clk 0:00:08]} 71. Kd7 {[%clk 0:00:20]} 1-0


[Site "https://www.chess.com"]

[Event "Titled Tuesday Blitz March 21 Late 2023"]
[White "Bolourchifard, Farzad"]
[Black "aidenzhouu"]
[WhiteFideId "12510084"]
[WhiteElo "2317"]
[BlackElo "2469"]
[Result "1-0"]
[Round "11"]
[TimeControl "180+2"]
[Date "2023.03.21"]
[WhiteClock "0:00:20"]
[BlackClock "0:00:15"]

1. e4 {[%clk 0:03:00]}  c6 {[%clk 0:02:59]} 2. d4 {[%clk 0:03:00]}  d5 {[%clk 0:03:00]} 3. e5 {[%clk 0:03:01]}  Bf5 {[%clk 0:03:00]} 4. Nf3 {[%clk 0:03:01]}  e6 {[%clk 0:03:00]} 5. Be2 {[%clk 0:03:02]}  c5 {[%clk 0:03:00]} 6. O-O {[%clk 0:02:59]}  Qb6 {[%clk 0:03:01]} 7. Nbd2 {[%clk 0:02:51]}  Nc6 {[%clk 0:02:55]} 8. Nb3 {[%clk 0:02:47]}  c4 {[%clk 0:02:52]} 9. Nbd2 {[%clk 0:02:47]}  Nxd4 {[%clk 0:02:51]} 10. Nxd4 {[%clk 0:02:43]}  Qxd4 {[%clk 0:02:52]} 11. c3 {[%clk 0:02:33]}  Qb6 {[%clk 0:02:44]} 12. b3 {[%clk 0:02:14]}  cxb3 {[%clk 0:02:43]} 13. Nxb3 {[%clk 0:02:14]}  Bc5 {[%clk 0:02:19]} 14. Nxc5 {[%clk 0:02:14]}  Qxc5 {[%clk 0:02:20]} 15. Qa4+ {[%clk 0:02:14]}  Kd8 {[%clk 0:02:14]} 16. Ba3 {[%clk 0:02:13]}  Qb6 {[%clk 0:02:02]} 17. c4 {[%clk 0:02:06]}  Ne7 {[%clk 0:02:00]} 18. Bd6 {[%clk 0:01:43]}  Nc6 {[%clk 0:01:43]} 19. cxd5 {[%clk 0:01:24]}  exd5 {[%clk 0:01:44]} 20. Qh4+ {[%clk 0:01:24]}  Kd7 {[%clk 0:01:34]} 21. Bg4 {[%clk 0:01:16]}  Be6 {[%clk 0:01:31]} 22. Rab1 {[%clk 0:01:16]}  Qa6 {[%clk 0:01:23]} 23. Rfc1 {[%clk 0:00:48]}  Rae8 {[%clk 0:01:19]} 24. f4 {[%clk 0:00:45]}  g6 {[%clk 0:00:57]} 25. Be2 {[%clk 0:00:44]}  Qxe2 {[%clk 0:00:30]} 26. Rxb7+ {[%clk 0:00:43]}  Kc8 {[%clk 0:00:30]} 27. Rc7+ {[%clk 0:00:42]}  Kb8 {[%clk 0:00:31]} 28. R7xc6+ {[%clk 0:00:37]}  Ka8 {[%clk 0:00:31]} 29. Qg3 {[%clk 0:00:28]}  d4 {[%clk 0:00:24]} 30. Re1 {[%clk 0:00:23]}  Qxa2 {[%clk 0:00:20]} 31. Rc5 {[%clk 0:00:22]}  Bd5 {[%clk 0:00:19]} 32. Rd1 {[%clk 0:00:18]}  Rc8 {[%clk 0:00:17]} 33. Qf2 {[%clk 0:00:17]}  Rxc5 {[%clk 0:00:17]} 34. Bxc5 {[%clk 0:00:17]}  Qxf2+ {[%clk 0:00:16]} 35. Kxf2 {[%clk 0:00:18]}  Rc8 {[%clk 0:00:15]} 36. Bxd4 {[%clk 0:00:18]}  Rc2+ {[%clk 0:00:15]} 37. Kg3 {[%clk 0:00:18]}  Rxg2+ {[%clk 0:00:15]} 38. Kh3 {[%clk 0:00:18]}  Re2 {[%clk 0:00:12]} 39. Ra1 {[%clk 0:00:18]}  Ra2 {[%clk 0:00:11]} 40. Rc1 {[%clk 0:00:17]}  Ra3+ {[%clk 0:00:10]} 41. Kh4 {[%clk 0:00:17]}  Ra4 {[%clk 0:00:10]} 42. Be3 {[%clk 0:00:17]}  Re4 {[%clk 0:00:10]} 43. Rc3 {[%clk 0:00:17]}  a5 {[%clk 0:00:10]} 44. Kg5 {[%clk 0:00:17]}  a4 {[%clk 0:00:09]} 45. Kh6 {[%clk 0:00:18]}  Rb4 {[%clk 0:00:07]} 46. Bc5 {[%clk 0:00:15]}  Rb3 {[%clk 0:00:07]} 47. Rxb3 {[%clk 0:00:12]}  axb3 {[%clk 0:00:07]} 48. Bd4 {[%clk 0:00:13]}  Be6 {[%clk 0:00:06]} 49. Kxh7 {[%clk 0:00:13]}  Kb7 {[%clk 0:00:07]} 50. h4 {[%clk 0:00:14]}  Kc6 {[%clk 0:00:08]} 51. Kh6 {[%clk 0:00:14]}  Kd5 {[%clk 0:00:08]} 52. Ba1 {[%clk 0:00:13]}  Ke4 {[%clk 0:00:08]} 53. Kg5 {[%clk 0:00:14]}  Kd3 {[%clk 0:00:08]} 54. h5 {[%clk 0:00:14]}  gxh5 {[%clk 0:00:09]} 55. f5 {[%clk 0:00:14]}  Bxf5 {[%clk 0:00:08]} 56. Kxf5 {[%clk 0:00:14]}  h4 {[%clk 0:00:08]} 57. Kg4 {[%clk 0:00:14]}  Ke4 {[%clk 0:00:08]} 58. Kxh4 {[%clk 0:00:15]}  Kf5 {[%clk 0:00:08]} 59. Kg3 {[%clk 0:00:15]}  Ke4 {[%clk 0:00:08]} 60. Kg4 {[%clk 0:00:15]}  Kd5 {[%clk 0:00:08]} 61. Kf4 {[%clk 0:00:16]}  Ke6 {[%clk 0:00:09]} 62. Ke4 {[%clk 0:00:16]}  Ke7 {[%clk 0:00:09]} 63. Bb2 {[%clk 0:00:17]}  Kf8 {[%clk 0:00:10]} 64. Kd5 {[%clk 0:00:17]}  Ke7 {[%clk 0:00:10]} 65. Kc4 {[%clk 0:00:18]}  Ke6 {[%clk 0:00:11]} 66. Kxb3 {[%clk 0:00:18]}  Kd5 {[%clk 0:00:12]} 67. Kc2 {[%clk 0:00:18]}  Ke4 {[%clk 0:00:13]} 68. Kd2 {[%clk 0:00:19]}  Kd5 {[%clk 0:00:14]} 69. Ke3 {[%clk 0:00:19]}  Ke6 {[%clk 0:00:15]} 70. Kf4 {[%clk 0:00:20]}  f6 {[%clk 0:00:15]} 71. exf6 {[%clk 0:00:20]} 1-0


[Site "https://www.chess.com"]

[Event "Titled Tuesday Blitz March 21 Late 2023"]
[White "Do Valle Cardoso, Lucas"]
[Black "Mazurkiewicz, Michal"]
[WhiteFideId "2163144"]
[BlackFideId "1124943"]
[WhiteElo "2383"]
[BlackElo "2054"]
[Result "1-0"]
[Round "11"]
[TimeControl "180+2"]
[Date "2023.03.21"]
[WhiteClock "0:01:55"]
[BlackClock "0:00:02"]

1. e4 {[%clk 0:03:00]}  d6 {[%clk 0:02:59]} 2. d4 {[%clk 0:03:00]}  Nf6 {[%clk 0:03:00]} 3. Nc3 {[%clk 0:03:01]}  c6 {[%clk 0:03:00]} 4. f3 {[%clk 0:03:01]}  e5 {[%clk 0:03:00]} 5. Nge2 {[%clk 0:03:01]}  Be7 {[%clk 0:03:01]} 6. Be3 {[%clk 0:03:02]}  O-O {[%clk 0:03:01]} 7. Qd2 {[%clk 0:03:03]}  b5 {[%clk 0:03:01]} 8. g4 {[%clk 0:03:03]}  b4 {[%clk 0:02:53]} 9. Nd1 {[%clk 0:03:02]}  Nbd7 {[%clk 0:02:53]} 10. Nf2 {[%clk 0:02:59]}  d5 {[%clk 0:02:50]} 11. g5 {[%clk 0:02:59]}  Nh5 {[%clk 0:02:50]} 12. exd5 {[%clk 0:02:59]}  cxd5 {[%clk 0:02:50]} 13. O-O-O {[%clk 0:02:56]}  exd4 {[%clk 0:02:42]} 14. Nxd4 {[%clk 0:02:55]}  Ne5 {[%clk 0:02:37]} 15. Kb1 {[%clk 0:02:54]}  Bb7 {[%clk 0:01:39]} 16. f4 {[%clk 0:02:51]}  Nc4 {[%clk 0:01:39]} 17. Qc1 {[%clk 0:02:48]}  Nxe3 {[%clk 0:01:38]} 18. Qxe3 {[%clk 0:02:49]}  Bd6 {[%clk 0:01:38]} 19. Nd3 {[%clk 0:02:46]}  g6 {[%clk 0:01:24]} 20. Be2 {[%clk 0:02:36]}  Ng7 {[%clk 0:01:24]} 21. h4 {[%clk 0:02:34]}  Qd7 {[%clk 0:01:06]} 22. Qg1 {[%clk 0:02:27]}  Nf5 {[%clk 0:01:01]} 23. Bg4 {[%clk 0:02:26]}  Rae8 {[%clk 0:00:25]} 24. h5 {[%clk 0:02:24]}  Re4 {[%clk 0:00:24]} 25. Nxf5 {[%clk 0:02:08]}  gxf5 {[%clk 0:00:24]} 26. Bf3 {[%clk 0:02:08]}  d4 {[%clk 0:00:11]} 27. g6 {[%clk 0:02:02]}  h6 {[%clk 0:00:05]} 28. gxf7+ {[%clk 0:02:00]}  Kh8 {[%clk 0:00:05]} 29. Bxe4 {[%clk 0:01:55]}  fxe4 {[%clk 0:00:04]} 30. Qxd4+ {[%clk 0:01:55]}  Kh7 {[%clk 0:00:04]} 31. Ne5 {[%clk 0:01:55]}  Bxe5 {[%clk 0:00:02]} 32. Qxd7 {[%clk 0:01:55]} 1-0


[Site "https://www.chess.com"]

[Event "Titled Tuesday Blitz March 21 Late 2023"]
[White "O`Gorman, Tom"]
[Black "Fernandez, Maria Florencia"]
[WhiteFideId "2508249"]
[BlackFideId "116459"]
[WhiteElo "2271"]
[BlackElo "2155"]
[Result "1/2-1/2"]
[Round "11"]
[TimeControl "180+2"]
[Date "2023.03.21"]
[WhiteClock "0:00:24"]
[BlackClock "0:00:07"]

1. e4 {[%clk 0:03:00]}  c5 {[%clk 0:02:59]} 2. Nf3 {[%clk 0:03:00]}  d6 {[%clk 0:02:58]} 3. c3 {[%clk 0:02:59]}  Nf6 {[%clk 0:02:54]} 4. Be2 {[%clk 0:02:58]}  g6 {[%clk 0:02:53]} 5. O-O {[%clk 0:02:57]}  Bg7 {[%clk 0:02:54]} 6. Bb5+ {[%clk 0:02:56]}  Nbd7 {[%clk 0:02:50]} 7. Re1 {[%clk 0:02:56]}  O-O {[%clk 0:02:49]} 8. d4 {[%clk 0:02:55]}  a5 {[%clk 0:02:49]} 9. h3 {[%clk 0:02:50]}  Qb6 {[%clk 0:02:45]} 10. Bf1 {[%clk 0:02:44]}  a4 {[%clk 0:02:42]} 11. Na3 {[%clk 0:02:43]}  Qc7 {[%clk 0:02:40]} 12. Bf4 {[%clk 0:02:33]}  e5 {[%clk 0:02:30]} 13. Bh2 {[%clk 0:02:30]}  Nh5 {[%clk 0:02:13]} 14. dxc5 {[%clk 0:02:28]}  dxc5 {[%clk 0:02:06]} 15. Nb5 {[%clk 0:02:27]}  Qc6 {[%clk 0:01:58]} 16. Qd6 {[%clk 0:02:24]}  Qxd6 {[%clk 0:01:50]} 17. Nxd6 {[%clk 0:02:24]}  Nf4 {[%clk 0:01:42]} 18. Rad1 {[%clk 0:02:22]}  Nb6 {[%clk 0:01:34]} 19. Nxc8 {[%clk 0:02:07]}  Rfxc8 {[%clk 0:01:28]} 20. Rd6 {[%clk 0:02:07]}  Rc6 {[%clk 0:01:16]} 21. Rxc6 {[%clk 0:02:07]}  bxc6 {[%clk 0:01:17]} 22. Rd1 {[%clk 0:02:07]}  a3 {[%clk 0:01:13]} 23. b3 {[%clk 0:02:05]}  c4 {[%clk 0:01:09]} 24. bxc4 {[%clk 0:01:59]}  Na4 {[%clk 0:01:09]} 25. Rc1 {[%clk 0:01:56]}  Rb8 {[%clk 0:01:01]} 26. c5 {[%clk 0:01:55]}  Rb2 {[%clk 0:00:58]} 27. Bc4 {[%clk 0:01:52]}  Nxc5 {[%clk 0:00:45]} 28. Bxf4 {[%clk 0:01:50]}  exf4 {[%clk 0:00:45]} 29. e5 {[%clk 0:01:51]}  h6 {[%clk 0:00:29]} 30. Rd1 {[%clk 0:01:48]}  Ne6 {[%clk 0:00:18]} 31. Rd6 {[%clk 0:01:37]}  c5 {[%clk 0:00:19]} 32. Ra6 {[%clk 0:01:34]}  Rb1+ {[%clk 0:00:12]} 33. Kh2 {[%clk 0:01:34]}  Rb2 {[%clk 0:00:12]} 34. Rxa3 {[%clk 0:01:26]}  Rxf2 {[%clk 0:00:12]} 35. Ra8+ {[%clk 0:01:25]}  Kh7 {[%clk 0:00:12]} 36. Ra7 {[%clk 0:01:24]}  Kg8 {[%clk 0:00:12]} 37. a4 {[%clk 0:01:20]}  Rc2 {[%clk 0:00:12]} 38. a5 {[%clk 0:01:19]}  Rxc3 {[%clk 0:00:13]} 39. Bxe6 {[%clk 0:01:17]}  fxe6 {[%clk 0:00:14]} 40. Rc7 {[%clk 0:01:13]}  Ra3 {[%clk 0:00:06]} 41. Rxc5 {[%clk 0:01:13]}  Bf8 {[%clk 0:00:06]} 42. Rb5 {[%clk 0:01:13]}  g5 {[%clk 0:00:06]} 43. Kg1 {[%clk 0:01:12]}  Kf7 {[%clk 0:00:06]} 44. Kf2 {[%clk 0:01:10]}  Be7 {[%clk 0:00:06]} 45. Nh2 {[%clk 0:01:01]}  Bd8 {[%clk 0:00:05]} 46. Ng4 {[%clk 0:01:00]}  Bxa5 {[%clk 0:00:05]} 47. Nxh6+ {[%clk 0:00:57]}  Kg6 {[%clk 0:00:05]} 48. Ng4 {[%clk 0:00:57]}  Kf5 {[%clk 0:00:05]} 49. Rb7 {[%clk 0:00:56]}  Ra2+ {[%clk 0:00:05]} 50. Kf3 {[%clk 0:00:55]}  Ra3+ {[%clk 0:00:04]} 51. Kf2 {[%clk 0:00:55]}  Ra2+ {[%clk 0:00:04]} 52. Kg1 {[%clk 0:00:55]}  Bc3 {[%clk 0:00:02]} 53. Rf7+ {[%clk 0:00:53]}  Ke4 {[%clk 0:00:02]} 54. Rg7 {[%clk 0:00:53]}  Bd4+ {[%clk 0:00:03]} 55. Kh2 {[%clk 0:00:52]}  Bxe5 {[%clk 0:00:03]} 56. Rxg5 {[%clk 0:00:51]}  Bd6 {[%clk 0:00:02]} 57. Nf6+ {[%clk 0:00:49]}  Ke3 {[%clk 0:00:02]} 58. Ng4+ {[%clk 0:00:47]}  Ke2 {[%clk 0:00:02]} 59. Ne5 {[%clk 0:00:45]}  f3 {[%clk 0:00:01]} 60. gxf3 {[%clk 0:00:44]}  Bxe5+ {[%clk 0:00:01]} 61. Rxe5+ {[%clk 0:00:43]}  Kxf3+ {[%clk 0:00:02]} 62. Kh1 {[%clk 0:00:43]}  Kg3 {[%clk 0:00:02]} 63. Re3+ {[%clk 0:00:42]}  Kh4 {[%clk 0:00:02]} 64. Kg1 {[%clk 0:00:43]}  e5 {[%clk 0:00:02]} 65. Kh1 {[%clk 0:00:43]}  e4 {[%clk 0:00:02]} 66. Kg1 {[%clk 0:00:43]}  Kg5 {[%clk 0:00:03]} 67. Rxe4 {[%clk 0:00:42]}  Kf5 {[%clk 0:00:03]} 68. Rg4 {[%clk 0:00:42]}  Rb2 {[%clk 0:00:03]} 69. Rg8 {[%clk 0:00:41]}  Ra2 {[%clk 0:00:04]} 70. h4 {[%clk 0:00:40]}  Rb2 {[%clk 0:00:04]} 71. Kf1 {[%clk 0:00:40]}  Kf6 {[%clk 0:00:04]} 72. Kg1 {[%clk 0:00:40]}  Kf7 {[%clk 0:00:04]} 73. Rg3 {[%clk 0:00:38]}  Kf6 {[%clk 0:00:05]} 74. h5 {[%clk 0:00:37]}  Kf5 {[%clk 0:00:04]} 75. h6 {[%clk 0:00:34]}  Rb8 {[%clk 0:00:04]} 76. Rg7 {[%clk 0:00:26]}  Rh8 {[%clk 0:00:05]} 77. h7 {[%clk 0:00:26]}  Kf6 {[%clk 0:00:05]} 78. Ra7 {[%clk 0:00:26]}  Kg6 {[%clk 0:00:06]} 79. Kg2 {[%clk 0:00:24]}  Rxh7 {[%clk 0:00:06]} 80. Rxh7 {[%clk 0:00:24]}  Kxh7 {[%clk 0:00:07]} 1/2-1/2


[Site "https://www.chess.com"]

[Event "Titled Tuesday Blitz March 21 Late 2023"]
[White "Munoz, Francisco Javier"]
[Black "Toktomushev, Teimur"]
[WhiteFideId "128368"]
[BlackFideId "14176726"]
[WhiteElo "2383"]
[BlackElo "2116"]
[Result "0-1"]
[Round "11"]
[TimeControl "180+2"]
[Date "2023.03.21"]
[WhiteClock "0:00:20"]
[BlackClock "0:00:17"]

1. e4 {[%clk 0:02:52]}  c5 {[%clk 0:02:59]} 2. Nc3 {[%clk 0:02:53]}  e6 {[%clk 0:02:59]} 3. f4 {[%clk 0:02:54]}  Nc6 {[%clk 0:02:58]} 4. Nf3 {[%clk 0:02:54]}  d5 {[%clk 0:02:57]} 5. Bb5 {[%clk 0:02:54]}  Ne7 {[%clk 0:02:56]} 6. d3 {[%clk 0:02:52]}  g6 {[%clk 0:02:56]} 7. O-O {[%clk 0:02:51]}  Bg7 {[%clk 0:02:57]} 8. Kh1 {[%clk 0:02:51]}  O-O {[%clk 0:02:56]} 9. Bxc6 {[%clk 0:02:51]}  Nxc6 {[%clk 0:02:56]} 10. Qe1 {[%clk 0:02:50]}  Rb8 {[%clk 0:02:55]} 11. Ng5 {[%clk 0:02:48]}  h6 {[%clk 0:02:42]} 12. Nh3 {[%clk 0:02:46]}  b5 {[%clk 0:02:40]} 13. f5 {[%clk 0:02:39]}  exf5 {[%clk 0:02:24]} 14. Nxd5 {[%clk 0:02:37]}  Be6 {[%clk 0:02:20]} 15. Nhf4 {[%clk 0:02:29]}  Bxd5 {[%clk 0:02:01]} 16. Nxd5 {[%clk 0:02:26]}  Nd4 {[%clk 0:01:56]} 17. Qf2 {[%clk 0:02:24]}  fxe4 {[%clk 0:01:37]} 18. dxe4 {[%clk 0:02:21]}  f5 {[%clk 0:01:36]} 19. Bf4 {[%clk 0:02:15]}  fxe4 {[%clk 0:01:35]} 20. Qg3 {[%clk 0:01:34]}  Rb7 {[%clk 0:00:26]} 21. Nc3 {[%clk 0:00:48]}  Rbf7 {[%clk 0:00:25]} 22. Nxe4 {[%clk 0:00:30]}  g5 {[%clk 0:00:19]} 23. Nxg5 {[%clk 0:00:19]}  hxg5 {[%clk 0:00:18]} 24. Qxg5 {[%clk 0:00:20]}  Qxg5 {[%clk 0:00:17]} 0-1


[Site "https://www.chess.com"]

[Event "Titled Tuesday Blitz March 21 Late 2023"]
[White "Meunier-Pion, Jean"]
[Black "Petukhov, Dmitry"]
[WhiteFideId "20685327"]
[BlackFideId "4142748"]
[WhiteElo "2124"]
[BlackElo "2311"]
[Result "1/2-1/2"]
[Round "11"]
[TimeControl "180+2"]
[Date "2023.03.21"]
[WhiteClock "0:00:03"]
[BlackClock "0:00:45"]

1. e4 {[%clk 0:03:00]}  c5 {[%clk 0:02:55]} 2. Nf3 {[%clk 0:03:00]}  d6 {[%clk 0:02:55]} 3. d4 {[%clk 0:03:00]}  cxd4 {[%clk 0:02:55]} 4. Nxd4 {[%clk 0:03:01]}  Nf6 {[%clk 0:02:56]} 5. Nc3 {[%clk 0:03:02]}  Nc6 {[%clk 0:02:57]} 6. Bg5 {[%clk 0:02:57]}  Bd7 {[%clk 0:02:56]} 7. Bc4 {[%clk 0:02:48]}  Qa5 {[%clk 0:02:54]} 8. Bxf6 {[%clk 0:02:37]}  gxf6 {[%clk 0:02:54]} 9. Nb3 {[%clk 0:02:34]}  Qg5 {[%clk 0:02:54]} 10. Qd2 {[%clk 0:02:26]}  Qxg2 {[%clk 0:02:47]} 11. O-O-O {[%clk 0:02:25]}  h5 {[%clk 0:02:46]} 12. Kb1 {[%clk 0:02:25]}  Bh6 {[%clk 0:02:44]} 13. Qe1 {[%clk 0:02:12]}  Ne5 {[%clk 0:02:40]} 14. Bd5 {[%clk 0:02:00]}  Rg8 {[%clk 0:02:36]} 15. Qe2 {[%clk 0:01:46]}  Qf3 {[%clk 0:02:33]} 16. Qxf3 {[%clk 0:01:43]}  Nxf3 {[%clk 0:02:33]} 17. Bxb7 {[%clk 0:01:43]}  Rb8 {[%clk 0:02:34]} 18. Ba6 {[%clk 0:01:40]}  Bc6 {[%clk 0:02:29]} 19. Be2 {[%clk 0:01:30]}  Ne5 {[%clk 0:02:22]} 20. Bxh5 {[%clk 0:01:30]}  Rg2 {[%clk 0:02:21]} 21. Rdf1 {[%clk 0:01:22]}  Bf4 {[%clk 0:02:15]} 22. h4 {[%clk 0:01:20]}  Kd7 {[%clk 0:02:13]} 23. Bd1 {[%clk 0:01:08]}  Nc4 {[%clk 0:02:01]} 24. Ka1 {[%clk 0:01:00]}  Be5 {[%clk 0:01:59]} 25. Bf3 {[%clk 0:00:50]}  Rgg8 {[%clk 0:01:53]} 26. Rfg1 {[%clk 0:00:48]}  a5 {[%clk 0:01:47]} 27. Rxg8 {[%clk 0:00:19]}  Rxg8 {[%clk 0:01:48]} 28. Nc1 {[%clk 0:00:20]}  Nxb2 {[%clk 0:01:41]} 29. Kxb2 {[%clk 0:00:19]}  Rb8+ {[%clk 0:01:42]} 30. Nb3 {[%clk 0:00:19]}  a4 {[%clk 0:01:43]} 31. Bg4+ {[%clk 0:00:17]}  e6 {[%clk 0:01:42]} 32. h5 {[%clk 0:00:15]}  axb3 {[%clk 0:01:41]} 33. axb3 {[%clk 0:00:14]}  Rc8 {[%clk 0:01:37]} 34. h6 {[%clk 0:00:12]}  Bxe4 {[%clk 0:01:36]} 35. Rh3 {[%clk 0:00:12]}  Bg2 {[%clk 0:01:32]} 36. Rd3 {[%clk 0:00:09]}  Bf1 {[%clk 0:01:29]} 37. Re3 {[%clk 0:00:08]}  f5 {[%clk 0:01:18]} 38. Bh5 {[%clk 0:00:04]}  Rxc3 {[%clk 0:01:15]} 39. Rxc3 {[%clk 0:00:03]}  Ke7 {[%clk 0:01:16]} 40. h7 {[%clk 0:00:03]}  Kf8 {[%clk 0:01:16]} 41. b4 {[%clk 0:00:03]}  Kg7 {[%clk 0:01:15]} 42. h8=Q+ {[%clk 0:00:03]}  Kxh8 {[%clk 0:01:15]} 43. Bxf7 {[%clk 0:00:04]}  Bc4 {[%clk 0:01:14]} 44. b5 {[%clk 0:00:03]}  Bxb5 {[%clk 0:01:13]} 45. Bxe6 {[%clk 0:00:03]}  f4 {[%clk 0:01:13]} 46. Kb3 {[%clk 0:00:03]}  Bxc3 {[%clk 0:01:13]} 47. Kxc3 {[%clk 0:00:03]}  Kg7 {[%clk 0:01:13]} 48. Bd5 {[%clk 0:00:04]}  Kf6 {[%clk 0:01:13]} 49. Kd4 {[%clk 0:00:05]}  Kf5 {[%clk 0:01:10]} 50. c4 {[%clk 0:00:05]}  Ba4 {[%clk 0:01:10]} 51. Bf3 {[%clk 0:00:06]}  Bb3 {[%clk 0:01:08]} 52. Be2 {[%clk 0:00:04]}  Ke6 {[%clk 0:01:06]} 53. Bg4+ {[%clk 0:00:04]}  Kf6 {[%clk 0:01:05]} 54. Be2 {[%clk 0:00:03]}  Bc2 {[%clk 0:01:02]} 55. Kd5 {[%clk 0:00:03]}  Ke7 {[%clk 0:01:02]} 56. Bf1 {[%clk 0:00:02]}  Bf5 {[%clk 0:01:01]} 57. Bg2 {[%clk 0:00:02]}  Bg6 {[%clk 0:01:01]} 58. Be4 {[%clk 0:00:03]}  Bh5 {[%clk 0:01:02]} 59. Bf5 {[%clk 0:00:02]}  Be2 {[%clk 0:01:02]} 60. Bh3 {[%clk 0:00:02]}  Bd3 {[%clk 0:01:01]} 61. Bg2 {[%clk 0:00:02]}  Be2 {[%clk 0:01:00]} 62. Be4 {[%clk 0:00:02]}  Bd1 {[%clk 0:01:00]} 63. Bd3 {[%clk 0:00:02]}  Ba4 {[%clk 0:01:00]} 64. Ke4 {[%clk 0:00:02]}  Kf6 {[%clk 0:00:55]} 65. Kxf4 {[%clk 0:00:03]}  Bc6 {[%clk 0:00:56]} 66. Ke3 {[%clk 0:00:03]}  Ke5 {[%clk 0:00:56]} 67. f4+ {[%clk 0:00:03]}  Kf6 {[%clk 0:00:57]} 68. Kd4 {[%clk 0:00:04]}  Ba4 {[%clk 0:00:54]} 69. Kd5 {[%clk 0:00:04]}  Ke7 {[%clk 0:00:55]} 70. Be4 {[%clk 0:00:03]}  Bb3 {[%clk 0:00:54]} 71. Kd4 {[%clk 0:00:03]}  Ke6 {[%clk 0:00:54]} 72. Bd3 {[%clk 0:00:03]}  Ke7 {[%clk 0:00:52]} 73. Be2 {[%clk 0:00:03]}  Bc2 {[%clk 0:00:52]} 74. Bg4 {[%clk 0:00:03]}  Bb3 {[%clk 0:00:51]} 75. Kc3 {[%clk 0:00:03]}  Ba4 {[%clk 0:00:50]} 76. Kd4 {[%clk 0:00:03]}  Bb3 {[%clk 0:00:50]} 77. Kd3 {[%clk 0:00:03]}  Ba4 {[%clk 0:00:50]} 78. Be2 {[%clk 0:00:03]}  Bc6 {[%clk 0:00:50]} 79. Ke3 {[%clk 0:00:03]}  Kf6 {[%clk 0:00:49]} 80. Bf3 {[%clk 0:00:04]}  Ba4 {[%clk 0:00:49]} 81. Bd5 {[%clk 0:00:04]}  Bb3 {[%clk 0:00:49]} 82. Kf3 {[%clk 0:00:04]}  Bd1+ {[%clk 0:00:49]} 83. Ke3 {[%clk 0:00:04]}  Bc2 {[%clk 0:00:48]} 84. Be4 {[%clk 0:00:04]}  Bb3 {[%clk 0:00:48]} 85. Kd4 {[%clk 0:00:04]}  Ba2 {[%clk 0:00:47]} 86. Kd5 {[%clk 0:00:04]}  Ke7 {[%clk 0:00:48]} 87. f5 {[%clk 0:00:04]}  Bb3 {[%clk 0:00:46]} 88. Bd3 {[%clk 0:00:04]}  Kf6 {[%clk 0:00:44]} 89. Kxd6 {[%clk 0:00:04]}  Bxc4 {[%clk 0:00:45]} 90. Bxc4 {[%clk 0:00:03]}  Kxf5 {[%clk 0:00:45]} 1/2-1/2


[Site "https://www.chess.com"]